fUSD/lending_fUSD_20250101
["ID","MTS","AMOUNT","RATE_DAILY","PERIOD"]
[347336693,1735703439769,-1977.35,0.00011054,2]
[347336695,1735703439779,-500.0,0.00011054,2]
[347336696,1735703439790,-500.0,0.00011054,2]
[347336697,1735703439800,-399.52331391,0.00011054,2]
[347336698,1735703439814,-689.46668609,0.00011054,2]
[347336699,1735703439824,-270.53331391,0.00011054,2]
[347337029,1735703443525,-1744.93,0.00011053,2]
[347337031,1735703443534,-1549.1,0.00011053,2]
[347337033,1735703443543,-683.85668609,0.00011054,2]
[347337035,1735703443553,-1310.48,0.00011054,2]
[347337037,1735703443563,-2059.22,0.00011054,2]
[347337039,1735703443574,-500.0,0.00011054,2]
[347337041,1735703443583,-4415.16,0.00011054,2]
[347337043,1735703443593,-500.0,0.00011054,2]
[347337045,1735703443602,-500.0,0.00011054,2]
[347337047,1735703443612,-1744.51,0.00011054,2]
[347337049,1735703443621,-500.0,0.00011054,2]
[347337051,1735703443631,-2764.74,0.00011054,2]
[347337053,1735703443640,-500.0,0.00011054,2]
[347337055,1735703443649,-2492.88,0.00011054,2]
[347337057,1735703443659,-500.0,0.00011054,2]
[347337059,1735703443668,-500.0,0.00011054,2]
[347337061,1735703443678,-863.98,0.00011054,2]
[347337063,1735703443688,-2358.15,0.00011054,2]
[347337065,1735703443698,-500.0,0.00011054,2]
[347337067,1735703443708,-2472.83,0.00011054,2]
[347337069,1735703443717,-1963.43,0.00011054,2]
[347337071,1735703443726,-4373.53,0.00011054,2]
[347337073,1735703443736,-2088.03,0.00011054,2]
[347337075,1735703443745,-1792.48,0.00011054,2]
[347337077,1735703443755,-500.0,0.00011054,2]
[347337079,1735703443763,-500.0,0.00011054,2]
[347337081,1735703443773,-4404.26,0.00011054,2]
[347337083,1735703443783,-1649.69,0.00011054,2]
[347337085,1735703443793,-1548.6,0.00011054,2]
[347337087,1735703443802,-500.0,0.00011054,2]
[347337089,1735703443812,-3317.03,0.00011054,2]
[347337091,1735703443822,-500.0,0.00011054,2]
[347337093,1735703443831,-500.0,0.00011054,2]
[347337095,1735703443841,-923.08,0.00011054,2]
[347337097,1735703443851,-500.0,0.00011054,2]
[347337099,1735703443860,-500.0,0.00011054,2]
[347337101,1735703443870,-500.0,0.00011054,2]
[347337103,1735703443879,-2237.22,0.00011054,2]
[347337105,1735703443888,-1110.08,0.00011054,2]
[347337107,1735703443897,-4538.16,0.00011054,2]
[347337109,1735703443907,-2518.72,0.00011054,2]
[347337111,1735703443916,-934.12,0.00011054,2]
[347337113,1735703443926,-3670.73,0.00011054,2]
[347337115,1735703443936,-555.63,0.00011054,2]
[347337117,1735703443950,-500.0,0.00011054,2]
[347337119,1735703443959,-500.0,0.00011054,2]
[347337121,1735703443968,-2846.69,0.00011054,2]
[347337123,1735703443977,-500.0,0.00011054,2]
[347337125,1735703443988,-11525.67,0.00011054,2]
[347337127,1735703443997,-2924.84,0.00011054,2]
[347337129,1735703444007,-2624.18,0.00011054,2]
[347337131,1735703444017,-500.0,0.00011054,2]
[347337133,1735703444028,-500.0,0.00011054,2]
[347337135,1735703444036,-1781.67,0.00011054,2]
[347337137,1735703444046,-500.0,0.00011054,2]
[347337139,1735703444056,-2101.67,0.00011054,2]
[347337141,1735703444066,-1006.88,0.00011054,2]
[347337143,1735703444075,-500.0,0.00011054,2]
[347337145,1735703444085,-2705.31,0.00011054,2]
[347337147,1735703444095,-1158.41,0.00011054,2]
[347337149,1735703444104,-3119.88,0.00011054,2]
[347337151,1735703444113,-500.0,0.00011054,2]
[347337153,1735703444123,-2568.92,0.00011054,2]
[347337155,1735703444132,-500.0,0.00011054,2]
[347337157,1735703444142,-500.0,0.00011054,2]
[347337159,1735703444151,-1479.9,0.00011054,2]
[347337161,1735703444160,-3281.95,0.00011054,2]
[347337163,1735703444170,-623.96186738,0.00011054,2]
[347337165,1735703444180,-500.0,0.00011054,2]
[347337167,1735703444191,-529.94,0.00011054,2]
[347337169,1735703444201,-500.0,0.00011054,2]
[347337171,1735703444211,-3575.03,0.00011054,2]
[347337173,1735703444220,-500.0,0.00011054,2]
[347337175,1735703444230,-4120.23,0.00011054,2]
[347337177,1735703444239,-500.0,0.00011054,2]
[347337179,1735703444248,-3999.97,0.00011054,2]
[347337181,1735703444258,-1147.71,0.00011054,2]
[347337183,1735703444267,-7330.65,0.00011054,2]
[347337185,1735703444277,-324.25834288,0.00011054,2]
[347337187,1735703444286,-342.47724429,0.00011054,2]
[347337189,1735703444296,-3168.49,0.00011054,2]
[347337191,1735703444307,-500.0,0.00011054,2]
[347337193,1735703444316,-1993.43,0.00011054,2]
[347337195,1735703444326,-500.0,0.00011054,2]
[347337197,1735703444335,-4260.04,0.00011054,2]
[347337199,1735703444346,-500.0,0.00011054,2]
[347337201,1735703444355,-3973.41,0.00011054,2]
[347337203,1735703444365,-500.0,0.00011054,2]
[347337205,1735703444376,-500.0,0.00011054,2]
[347337207,1735703444385,-3392.29,0.00011054,2]
[347337209,1735703444395,-500.0,0.00011054,2]
[347337211,1735703444404,-500.0,0.00011054,2]
[347337213,1735703444414,-19324.65,0.00011054,2]
[347337215,1735703444423,-500.0,0.00011054,2]
[347337217,1735703444432,-2957.46,0.00011054,2]
[347337219,1735703444442,-7166.08,0.00011054,2]
[347337221,1735703444451,-4138.04,0.00011054,2]
[347337223,1735703444460,-4254.42,0.00011054,2]
[347337225,1735703444470,-500.0,0.00011054,2]
[347337227,1735703444479,-2751.34,0.00011054,2]
[347337229,1735703444489,-500.0,0.00011054,2]
[347337231,1735703444498,-521.71,0.00011054,2]
[347337233,1735703444508,-576.32,0.00011055,2]
[347337235,1735703444517,-2371.09,0.00011055,2]
[347337237,1735703444527,-500.0,0.00011055,2]
[347337239,1735703444536,-929.61,0.00011055,2]
[347337241,1735703444546,-500.0,0.00011055,2]
[347337243,1735703444556,-500.0,0.00011055,2]
[347337245,1735703444566,-766.75,0.00011055,2]
[347337247,1735703444575,-1394.61,0.00011055,2]
[347337249,1735703444585,-814.92,0.00011055,2]
[347337251,1735703444594,-500.0,0.00011055,2]
[347337253,1735703444604,-500.0,0.00011055,2]
[347337255,1735703444613,-1297.08,0.00011055,2]
[347337257,1735703444623,-500.0,0.00011055,2]
[347337259,1735703444632,-500.0,0.00011055,2]
[347337261,1735703444641,-528.47,0.00011055,2]
[347337262,1735703444651,-500.0,0.00011055,2]
[347337263,1735703444660,-500.0,0.00011055,2]
[347337264,1735703444670,-563.8,0.00011055,2]
[347337265,1735703444679,-590.29,0.00011055,2]
[347337266,1735703444689,-1334.54,0.00011055,2]
[347337267,1735703444699,-500.0,0.00011055,2]
[347337268,1735703444708,-500.0,0.00011055,2]
[347337269,1735703444718,-725.76,0.00011055,2]
[347337270,1735703444727,-500.0,0.00011055,2]
[347337271,1735703444737,-500.0,0.00011055,2]
[347337273,1735703444746,-1322.28,0.00011055,2]
[347337275,1735703444756,-500.0,0.00011055,2]
[347337277,1735703444766,-1358.4,0.00011055,2]
[347337279,1735703444775,-615.67,0.00011055,2]
[347337281,1735703444784,-500.0,0.00011055,2]
[347337283,1735703444794,-876.33,0.00011055,2]
[347337285,1735703444803,-1622.05,0.00011055,2]
[347337287,1735703444813,-1102.5,0.00011055,2]
[347337289,1735703444822,-500.0,0.00011055,2]
[347337291,1735703444832,-1321.76,0.00011055,2]
[347337293,1735703444841,-500.0,0.00011055,2]
[347337295,1735703444851,-743.3,0.00011055,2]
[347337297,1735703444860,-1207.04,0.00011055,2]
[347337299,1735703444869,-500.0,0.00011055,2]
[347337301,1735703444879,-2353.18,0.00011055,2]
[347337303,1735703444888,-564.74399475,0.00011055,2]
[347337305,1735703444897,-2519.81,0.00011055,2]
[347337307,1735703444906,-500.0,0.00011055,2]
[347337309,1735703444915,-756.85,0.00011055,2]
[347337311,1735703444925,-500.0,0.00011055,2]
[347337313,1735703444934,-1565.77,0.00011055,2]
[347337315,1735703444946,-834.48,0.00011055,2]
[347337317,1735703444955,-1229.76,0.00011055,2]
[347337319,1735703444964,-500.0,0.00011055,2]
[347337321,1735703444974,-730.78,0.00011055,2]
[347337323,1735703444983,-500.0,0.00011055,2]
[347337325,1735703444992,-500.0,0.00011055,2]
[347337327,1735703445002,-500.0,0.00011055,2]
[347337329,1735703445012,-909.93,0.00011055,2]
[347337331,1735703445021,-500.0,0.00011055,2]
[347337333,1735703445030,-1648.62,0.00011055,2]
[347337335,1735703445040,-500.0,0.00011055,2]
[347337337,1735703445049,-626.32,0.00011055,2]
[347337339,1735703445058,-500.0,0.00011055,2]
[347337341,1735703445067,-500.0,0.00011055,2]
[347337343,1735703445076,-1273.48,0.00011055,2]
[347337372,1735703445087,-588.19,0.00011055,2]
[347337374,1735703445357,-500.0,0.00011055,2]
[347337376,1735703445367,-500.0,0.00011055,2]
[347337378,1735703445377,-1011.04,0.00011055,2]
[347337380,1735703445386,-500.0,0.00011055,2]
[347337382,1735703445396,-500.0,0.00011055,2]
[347337384,1735703445406,-560.75,0.00011055,2]
[347337386,1735703445416,-1391.12,0.00011055,2]
[347337388,1735703445426,-1085.24,0.00011055,2]
[347337390,1735703445435,-500.0,0.00011055,2]
[347337392,1735703445445,-868.18,0.00011055,2]
[347337394,1735703445454,-837.7,0.00011055,2]
[347337396,1735703445465,-500.0,0.00011055,2]
[347337398,1735703445474,-1453.2,0.00011055,2]
[347337400,1735703445483,-843.01,0.00011055,2]
[347337402,1735703445492,-2366.05,0.00011055,2]
[347337404,1735703445501,-500.0,0.00011055,2]
[347337406,1735703445511,-500.0,0.00011055,2]
[347337408,1735703445520,-1032.21,0.00011055,2]
[347337410,1735703445529,-1366.36,0.00011055,2]
[347337412,1735703445538,-500.0,0.00011055,2]
[347337414,1735703445546,-500.0,0.00011055,2]
[347337416,1735703445555,-500.0,0.00011055,2]
[347337418,1735703445566,-500.0,0.00011055,2]
[347337420,1735703445575,-2103.27,0.00011055,2]
[347337422,1735703445585,-684.11,0.00011055,2]
[347337424,1735703445594,-500.0,0.00011055,2]
[347337426,1735703445603,-3312.01,0.00011055,2]
[347337428,1735703445612,-500.0,0.00011055,2]
[347337430,1735703445621,-500.0,0.00011055,2]
[347337432,1735703445631,-500.0,0.00011055,2]
[347337433,1735703445640,-707.52,0.00011055,2]
[347337436,1735703445650,-810.1,0.00011055,2]
[347337437,1735703445659,-807.27,0.00011055,2]
[347337440,1735703445669,-500.0,0.00011055,2]
[347337441,1735703445679,-717.13,0.00011055,2]
[347337444,1735703445688,-582.24514438,0.00011055,2]
[347337446,1735703445698,-500.0,0.00011055,2]
[347337448,1735703445708,-500.0,0.00011055,2]
[347337450,1735703445718,-943.06,0.00011055,2]
[347337452,1735703445727,-4178.82,0.00011055,2]
[347337453,1735703445736,-635.07,0.00011055,2]
[347337456,1735703445745,-500.0,0.00011055,2]
[347337458,1735703445755,-500.0,0.00011055,2]
[347337460,1735703445764,-834.86,0.00011055,2]
[347337462,1735703445774,-500.0,0.00011055,2]
[347337463,1735703445784,-500.0,0.00011055,2]
[347337465,1735703445793,-1294.3,0.00011055,2]
[347337468,1735703445803,-577.12403399,0.00011055,2]
[347337471,1735703445813,-500.0,0.00011055,2]
[347337473,1735703445823,-4541.49,0.00011055,2]
[347337475,1735703445833,-500.0,0.00011055,2]
[347337477,1735703445843,-510.69,0.00011055,2]
[347337479,1735703445852,-912.56,0.00011055,2]
[347337481,1735703445862,-2257.1,0.00011055,2]
[347337483,1735703445871,-500.0,0.00011055,2]
[347337485,1735703445881,-1008.71,0.00011055,2]
[347337487,1735703445891,-1519.67,0.00011055,2]
[347337489,1735703445900,-2722.7,0.00011055,2]
[347337491,1735703445909,-1159.2,0.00011055,2]
[347337493,1735703445920,-500.0,0.00011055,2]
[347337495,1735703445929,-500.0,0.00011055,2]
[347337497,1735703445942,-2855.58,0.00011055,2]
[347337499,1735703445952,-500.0,0.00011055,2]
[347337501,1735703445962,-1394.15,0.00011055,2]
[347337503,1735703445971,-500.0,0.00011055,2]
[347337505,1735703445980,-339.69467624,0.00011055,2]
[347337507,1735703445991,-1002.08,0.00011055,2]
[347337509,1735703446000,-500.0,0.00011055,2]
[347337511,1735703446009,-500.0,0.00011055,2]
[347337513,1735703446021,-500.0,0.00011055,2]
[347337515,1735703446031,-1309.28,0.00011055,2]
[347337517,1735703446040,-500.0,0.00011055,2]
[347337518,1735703446049,-984.39,0.00011055,2]
[347337520,1735703446060,-500.0,0.00011055,2]
[347337522,1735703446070,-2412.75,0.00011055,2]
[347337523,1735703446080,-838.57,0.00011055,2]
[347337524,1735703446090,-500.0,0.00011055,2]
[347337525,1735703446099,-816.14,0.00011055,2]
[347337526,1735703446109,-500.0,0.00011055,2]
[347337527,1735703446118,-3096.77,0.00011055,2]
[347337528,1735703446128,-500.0,0.00011055,2]
[347337529,1735703446137,-1417.65,0.00011055,2]
[347337530,1735703446146,-500.0,0.00011055,2]
[347337531,1735703446155,-2612.22,0.00011055,2]
[347337533,1735703446165,-636.4,0.00011055,2]
[347337535,1735703446174,-906.12,0.00011055,2]
[347337537,1735703446183,-500.0,0.00011055,2]
[347337539,1735703446192,-753.18,0.00011055,2]
[347337541,1735703446202,-978.87,0.00011055,2]
[347337543,1735703446211,-547.09,0.00011055,2]
[347337545,1735703446220,-500.0,0.00011055,2]
[347337547,1735703446230,-877.58,0.00011055,2]
[347337549,1735703446239,-213.09147485,0.00011055,2]
[347337551,1735703446248,-4846.52,0.00011055,2]
[347337553,1735703446257,-836.48,0.00011055,2]
[347337555,1735703446266,-500.0,0.00011055,2]
[347337557,1735703446276,-500.0,0.00011055,2]
[347337559,1735703446286,-1305.42,0.00011055,2]
[347337561,1735703446295,-500.0,0.00011055,2]
[347337563,1735703446304,-500.0,0.00011055,2]
[347337565,1735703446314,-500.0,0.00011055,2]
[347337567,1735703446323,-838.92,0.00011055,2]
[347337569,1735703446333,-2277.26,0.00011055,2]
[347337571,1735703446342,-2090.96,0.00011055,2]
[347337573,1735703446351,-525.68,0.00011055,2]
[347337575,1735703446360,-1205.43,0.00011055,2]
[347337577,1735703446370,-500.0,0.00011055,2]
[347337579,1735703446379,-1032.68,0.00011055,2]
[347337581,1735703446389,-3400.19,0.00011055,2]
[347337583,1735703446398,-500.0,0.00011055,2]
[347337585,1735703446407,-2402.57,0.00011055,2]
[347337587,1735703446417,-747.33,0.00011055,2]
[347337589,1735703446425,-2956.35,0.00011055,2]
[347337591,1735703446435,-500.0,0.00011055,2]
[347337593,1735703446444,-2206.6,0.00011055,2]
[347337595,1735703446453,-500.0,0.00011055,2]
[347337597,1735703446462,-500.0,0.00011055,2]
[347337599,1735703446471,-1151.46653515,0.00011055,2]
[347337613,1735703446595,-194.96346485,0.00011055,2]
[347337615,1735703446604,-500.0,0.00011055,2]
[347337617,1735703446615,-655.28978634,0.00011055,2]
[347337708,1735703449515,-500.0,0.00011053,2]
[347337752,1735703621491,5000.0,0.00010956,2]
[347337753,1735703654216,705.55048237,0.00010953,2]
[347337754,1735703672483,2500.0,0.00010955,2]
[347337755,1735703675192,181.127,0.0001076,2]
[347337756,1735703797035,661.2,8.248e-05,2]
[347337757,1735703797234,661.2,0.00010512,2]
[347337759,1735703871300,303.44,0.00010137,2]
[347337760,1735703876503,622.87,0.00010161,2]
[347337761,1735703893006,2000.0,0.00010076,2]
[347337762,1735704028863,292.79631765,0.00010955,2]
[347337763,1735704079886,683743.42850819,0.00011,2]
[347337764,1735704092873,216065.92542108,0.00011,2]
[347337765,1735704141382,250.00365,0.0001096,2]
[347337766,1735704141471,250.00365,0.0001098,2]
[347337767,1735704178264,250.0,0.00010147,2]
[347337768,1735704209313,1000.0,0.00010076,2]
[347337769,1735704279750,360.25,0.00010073,2]
[347337770,1735704314371,173.615,0.0001076,2]
[347337771,1735704369712,172.18196126,0.00010954,2]
[347337772,1735704489555,410.73025,0.0001094,2]
[347337807,1735704632687,-276.9999995,0.00011014,2]
[347337808,1735704632743,-780.0000005,0.00011014,2]
[347337809,1735704632753,-151.91,0.00011043,2]
[347337810,1735704632763,-300.0,0.0001105,2]
[347337811,1735704632773,-348.4199995,0.00011051,2]
[347337812,1735704632784,-565.07110715,0.00011051,2]
[347337813,1735704632794,-5109.94,0.00011051,2]
[347337814,1735704632804,-3353.46,0.00011051,2]
[347337815,1735704632814,-1291.94351289,0.00011051,2]
[347337816,1735704632875,-2539.40212491,0.00011051,2]
[347337819,1735704637714,-974.80061012,0.00011051,2]
[347337820,1735704637819,-419.275395,0.00011051,2]
[347337821,1735704637831,-763.09835708,0.00011051,2]
[347337822,1735704637842,-5988.52,0.00011051,2]
[347337823,1735704637851,-748.11,0.00011051,2]
[347337824,1735704637861,-2553.86,0.00011051,2]
[347337825,1735704637871,-1656.94713815,0.00011051,2]
[347337826,1735704637888,-896.91286185,0.00011051,2]
[347337827,1735704637897,-1051.46,0.00011051,2]
[347337828,1735704637906,-3954.81,0.00011051,2]
[347337829,1735704637915,-14977.58,0.00011051,2]
[347337830,1735704637924,-7100.42,0.00011051,2]
[347337831,1735704637933,-3790.29,0.00011051,2]
[347337832,1735704637942,-11766.04,0.00011051,2]
[347337833,1735704637952,-6015.61,0.00011051,2]
[347337834,1735704637961,-1903.82,0.00011051,2]
[347337835,1735704637970,-9123.4,0.00011051,2]
[347337836,1735704637979,-1722.45,0.00011051,2]
[347337837,1735704637988,-368.93987623,0.00011052,2]
[347337838,1735704637998,-1052.23,0.00011052,2]
[347337839,1735704638008,-391.1796628,0.00011052,2]
[347337840,1735704638017,-1728.11,0.00011052,2]
[347337841,1735704638027,-1132.72,0.00011052,2]
[347337842,1735704638037,-500.0,0.00011052,2]
[347337843,1735704638047,-500.0,0.00011052,2]
[347337844,1735704638057,-4456.11,0.00011052,2]
[347337845,1735704638066,-788.13,0.00011052,2]
[347337846,1735704638077,-500.0,0.00011052,2]
[347337847,1735704638086,-500.0,0.00011052,2]
[347337849,1735704638095,-500.0,0.00011052,2]
[347337851,1735704638105,-500.0,0.00011052,2]
[347337853,1735704638114,-500.0,0.00011052,2]
[347337855,1735704638124,-3258.34,0.00011052,2]
[347337857,1735704638133,-1220.42,0.00011052,2]
[347337860,1735704638143,-227.61837913,0.00011052,2]
[347337862,1735704638153,-500.0,0.00011052,2]
[347337864,1735704638162,-500.0,0.00011052,2]
[347337866,1735704638172,-740.61,0.00011052,2]
[347337868,1735704638182,-429.25429559,0.00011052,2]
[347337870,1735704638191,-1090.06,0.00011052,2]
[347337872,1735704638200,-1077.02,0.00011052,2]
[347337874,1735704638210,-1165.1,0.00011052,2]
[347337876,1735704638219,-500.0,0.00011052,2]
[347337878,1735704638229,-1469.39,0.00011052,2]
[347337880,1735704638238,-529.15,0.00011052,2]
[347337882,1735704638247,-1773.19,0.00011052,2]
[347337884,1735704638257,-3109.07,0.00011052,2]
[347337886,1735704638266,-649.0699268,0.00011052,2]
[347337888,1735704638275,-500.0,0.00011052,2]
[347337890,1735704638284,-2771.27,0.00011052,2]
[347337892,1735704638295,-742.97,0.00011052,2]
[347337894,1735704638304,-745.26,0.00011052,2]
[347337896,1735704638313,-500.0,0.00011052,2]
[347337898,1735704638323,-500.0,0.00011052,2]
[347337900,1735704638333,-500.0,0.00011052,2]
[347337902,1735704638343,-500.0,0.00011052,2]
[347337904,1735704638352,-946.11,0.00011052,2]
[347337906,1735704638362,-500.0,0.00011052,2]
[347337908,1735704638371,-500.0,0.00011052,2]
[347337910,1735704638381,-662.27,0.00011052,2]
[347337912,1735704638390,-500.0,0.00011052,2]
[347337914,1735704638399,-634.22,0.00011052,2]
[347337916,1735704638409,-500.0,0.00011052,2]
[347337918,1735704638418,-788.04,0.00011052,2]
[347337920,1735704638427,-1886.41,0.00011052,2]
[347337922,1735704638437,-558.35,0.00011052,2]
[347337924,1735704638447,-500.0,0.00011052,2]
[347337926,1735704638456,-501.63,0.00011052,2]
[347337928,1735704638466,-1199.98,0.00011052,2]
[347337930,1735704638475,-500.0,0.00011052,2]
[347337932,1735704638485,-516.63702626,0.00011052,2]
[347337934,1735704638494,-521.79991984,0.00011052,2]
[347337936,1735704638503,-1551.39,0.00011052,2]
[347337938,1735704638512,-502.76,0.00011052,2]
[347337940,1735704638521,-500.0,0.00011052,2]
[347337942,1735704638531,-2278.16,0.00011052,2]
[347337944,1735704638540,-1904.91,0.00011052,2]
[347337946,1735704638550,-500.0,0.00011052,2]
[347337948,1735704638562,-2199.86,0.00011052,2]
[347337951,1735704638571,-500.0,0.00011052,2]
[347337952,1735704638581,-500.0,0.00011052,2]
[347337955,1735704638593,-500.0,0.00011052,2]
[347337957,1735704638603,-696.94,0.00011052,2]
[347337959,1735704638613,-1576.29,0.00011052,2]
[347337961,1735704638623,-500.0,0.00011052,2]
[347337962,1735704638633,-1442.2,0.00011052,2]
[347337964,1735704638643,-500.0,0.00011052,2]
[347337966,1735704638653,-500.0,0.00011052,2]
[347337968,1735704638662,-3506.89,0.00011052,2]
[347337970,1735704638671,-500.0,0.00011052,2]
[347337972,1735704638680,-1110.01,0.00011052,2]
[347337974,1735704638689,-500.0,0.00011052,2]
[347337976,1735704638699,-500.0,0.00011052,2]
[347337978,1735704638709,-500.0,0.00011052,2]
[347337981,1735704638719,-1586.23,0.00011052,2]
[347337983,1735704638729,-500.0,0.00011052,2]
[347337985,1735704638739,-500.0,0.00011052,2]
[347337987,1735704638748,-526.13,0.00011052,2]
[347337989,1735704638757,-1465.43,0.00011052,2]
[347337990,1735704638766,-500.0,0.00011052,2]
[347337993,1735704638776,-3015.27,0.00011052,2]
[347337994,1735704638785,-500.0,0.00011052,2]
[347337997,1735704638795,-500.0,0.00011052,2]
[347337999,1735704638804,-500.0,0.00011052,2]
[347338001,1735704638814,-500.0,0.00011052,2]
[347338003,1735704638823,-500.0,0.00011052,2]
[347338005,1735704638833,-2424.04,0.00011052,2]
[347338006,1735704638845,-1099.24,0.00011052,2]
[347338008,1735704638854,-500.0,0.00011052,2]
[347338009,1735704638864,-500.0,0.00011052,2]
[347338011,1735704638873,-1575.45,0.00011052,2]
[347338013,1735704638882,-500.0,0.00011052,2]
[347338014,1735704638892,-435.67577255,0.00011052,2]
[347338016,1735704638901,-500.0,0.00011052,2]
[347338018,1735704638910,-684.26,0.00011052,2]
[347338019,1735704638920,-500.0,0.00011052,2]
[347338021,1735704638930,-607.47,0.00011052,2]
[347338023,1735704638940,-1621.63,0.00011052,2]
[347338024,1735704638949,-254.93579552,0.00011052,2]
[347338026,1735704638959,-500.0,0.00011052,2]
[347338028,1735704638968,-500.0,0.00011052,2]
[347338029,1735704638978,-500.0,0.00011052,2]
[347338031,1735704638987,-500.0,0.00011052,2]
[347338033,1735704638998,-949.37,0.00011052,2]
[347338035,1735704639007,-500.0,0.00011052,2]
[347338036,1735704639017,-500.0,0.00011052,2]
[347338038,1735704639026,-500.0,0.00011052,2]
[347338040,1735704639036,-500.0,0.00011052,2]
[347338041,1735704639046,-500.0,0.00011052,2]
[347338042,1735704639055,-4169.4,0.00011052,2]
[347338043,1735704639064,-500.0,0.00011052,2]
[347338044,1735704639074,-500.0,0.00011052,2]
[347338045,1735704639083,-1428.51,0.00011052,2]
[347338046,1735704639094,-500.0,0.00011052,2]
[347338047,1735704639104,-858.8,0.00011052,2]
[347338048,1735704639113,-500.0,0.00011052,2]
[347338049,1735704639123,-500.0,0.00011052,2]
[347338050,1735704639133,-500.0,0.00011052,2]
[347338051,1735704639143,-655.03,0.00011052,2]
[347338052,1735704639152,-500.0,0.00011052,2]
[347338053,1735704639162,-500.0,0.00011052,2]
[347338054,1735704639172,-500.0,0.00011052,2]
[347338055,1735704639182,-744.51,0.00011052,2]
[347338056,1735704639191,-693.67,0.00011052,2]
[347338057,1735704639201,-733.46,0.00011052,2]
[347338058,1735704639211,-720.97,0.00011052,2]
[347338059,1735704639221,-500.0,0.00011052,2]
[347338060,1735704639230,-500.0,0.00011052,2]
[347338061,1735704639240,-603.17,0.00011052,2]
[347338062,1735704639249,-3655.04,0.00011052,2]
[347338063,1735704639259,-500.0,0.00011052,2]
[347338064,1735704639269,-500.0,0.00011052,2]
[347338065,1735704639279,-500.0,0.00011052,2]
[347338066,1735704639287,-790.85,0.00011052,2]
[347338067,1735704639297,-981.42,0.00011052,2]
[347338068,1735704639306,-790.79,0.00011052,2]
[347338069,1735704639316,-599.63,0.00011052,2]
[347338070,1735704639325,-500.0,0.00011052,2]
[347338071,1735704639335,-938.04,0.00011052,2]
[347338072,1735704639345,-500.0,0.00011052,2]
[347338073,1735704639355,-501.30707147,0.00011052,2]
[347338074,1735704639366,-500.0,0.00011052,2]
[347338075,1735704639376,-747.35,0.00011052,2]
[347338076,1735704639386,-1191.43,0.00011052,2]
[347338078,1735704639704,-623.16,0.00011052,2]
[347338079,1735704639714,-500.0,0.00011052,2]
[347338080,1735704639725,-529.56,0.00011052,2]
[347338081,1735704639734,-884.68,0.00011052,2]
[347338082,1735704639744,-500.0,0.00011052,2]
[347338083,1735704639754,-500.0,0.00011052,2]
[347338084,1735704639763,-500.0,0.00011052,2]
[347338085,1735704639772,-467.50104467,0.00011052,2]
[347338086,1735704639782,-599.83415229,0.00011052,2]
[347338087,1735704639792,-500.0,0.00011052,2]
[347338088,1735704639801,-619.88,0.00011052,2]
[347338089,1735704639810,-2294.65,0.00011052,2]
[347338090,1735704639819,-500.0,0.00011052,2]
[347338091,1735704639829,-1202.72,0.00011052,2]